[Event "*** Titled Tuesday Blitz"]
[Site "Chess.com"]
[Date "2020.10.27"]
[Round "3"]
[White "Miss_JJ20"]
[Black "marabu44"]
[Result "1/2-1/2"]
[WhiteElo "2446"]
[BlackElo "2238"]
[TimeControl "180+1"]
[EndTime "10:29:15 PDT"]
[Termination "Game drawn - insufficient material"]

1. e4 {[%clk 0:03:00.9]} 1... e5 {[%clk 0:02:58.8]} 2. Nf3 {[%clk 0:02:57.1]}
2... Nc6 {[%clk 0:02:58.1]} 3. d4 {[%clk 0:02:57.7]} 3... exd4 {[%clk
0:02:57.5]} 4. Nxd4 {[%clk 0:02:58.3]} 4... Bc5 {[%clk 0:02:57.4]} 5. Nb3 {[%clk
0:02:58.9]} 5... Bb6 {[%clk 0:02:57.4]} 6. Nc3 {[%clk 0:02:58.7]} 6... Nf6
{[%clk 0:02:57]} 7. Bg5 {[%clk 0:02:54.2]} 7... h6 {[%clk 0:02:45.3]} 8. Bh4
{[%clk 0:02:50.7]} 8... g5 {[%clk 0:02:44.8]} 9. Bg3 {[%clk 0:02:51]} 9... d6
{[%clk 0:02:44.8]} 10. h4 {[%clk 0:02:40.7]} 10... g4 {[%clk 0:02:36.5]} 11. Qd2
{[%clk 0:02:35.2]} 11... Qe7 {[%clk 0:02:34.3]} 12. O-O-O {[%clk 0:02:32.9]}
12... Be6 {[%clk 0:02:33.3]} 13. Nd5 {[%clk 0:02:31.5]} 13... Bxd5 {[%clk
0:02:32.7]} 14. exd5 {[%clk 0:02:31.9]} 14... Ne5 {[%clk 0:02:32.9]} 15. Bb5+
{[%clk 0:02:30.7]} 15... Kf8 {[%clk 0:02:29.1]} 16. h5 {[%clk 0:02:01.3]} 16...
a6 {[%clk 0:02:25.8]} 17. Be2 {[%clk 0:02:00.2]} 17... Ne4 {[%clk 0:02:18.9]}
18. Qf4 {[%clk 0:01:48.5]} 18... Qg5 {[%clk 0:02:07.6]} 19. Qxg5 {[%clk
0:01:30.8]} 19... hxg5 {[%clk 0:02:01.3]} 20. Nd4 {[%clk 0:01:29.3]} 20... Nxg3
{[%clk 0:01:59.4]} 21. fxg3 {[%clk 0:01:28.7]} 21... Bxd4 {[%clk 0:01:54.5]} 22.
Rxd4 {[%clk 0:01:29.6]} 22... Kg7 {[%clk 0:01:50.6]} 23. Bxg4 {[%clk 0:01:26.5]}
23... Rae8 {[%clk 0:01:38.9]} 24. Bf5 {[%clk 0:01:22.2]} 24... Rh6 {[%clk
0:01:34]} 25. g4 {[%clk 0:01:19.8]} 25... Re7 {[%clk 0:01:14.9]} 26. Kd2 {[%clk
0:01:13.7]} 26... Rh8 {[%clk 0:01:10.4]} 27. b3 {[%clk 0:01:03.1]} 27... b6
{[%clk 0:01:07.1]} 28. Re4 {[%clk 0:00:54.7]} 28... a5 {[%clk 0:01:04.5]} 29. a3
{[%clk 0:00:51.6]} 29... f6 {[%clk 0:01:00]} 30. c4 {[%clk 0:00:45.1]} 30... Kh6
{[%clk 0:00:57.2]} 31. Kc3 {[%clk 0:00:44.8]} 31... Ra8 {[%clk 0:00:55.8]} 32.
Ra1 {[%clk 0:00:42.7]} 32... Ree8 {[%clk 0:00:51.8]} 33. Rf1 {[%clk 0:00:37.1]}
33... Rf8 {[%clk 0:00:44.3]} 34. Re2 {[%clk 0:00:33.1]} 34... Rae8 {[%clk
0:00:39.9]} 35. Ref2 {[%clk 0:00:23.9]} 35... Kg7 {[%clk 0:00:35.5]} 36. h6+
{[%clk 0:00:13.1]} 36... Kh8 {[%clk 0:00:34.1]} 37. Be6 {[%clk 0:00:08.5]} 37...
Rxe6 {[%clk 0:00:18.6]} 38. dxe6 {[%clk 0:00:08.5]} 38... Nxg4 {[%clk
0:00:19.2]} 39. Re2 {[%clk 0:00:04.2]} 39... Kh7 {[%clk 0:00:18.5]} 40. e7
{[%clk 0:00:03.2]} 40... Re8 {[%clk 0:00:18.4]} 41. b4 {[%clk 0:00:02.3]} 41...
Kxh6 {[%clk 0:00:17.1]} 42. c5 {[%clk 0:00:02.2]} 42... Kg6 {[%clk 0:00:16.5]}
43. c6 {[%clk 0:00:01.7]} 43... axb4+ {[%clk 0:00:16.6]} 44. axb4 {[%clk
0:00:01.8]} 44... Ne5 {[%clk 0:00:17.3]} 45. Kd4 {[%clk 0:00:01.4]} 45... Rxe7
{[%clk 0:00:17.3]} 46. Kc3 {[%clk 0:00:01.3]} 46... Re6 {[%clk 0:00:16.8]} 47.
Rd1 {[%clk 0:00:01.1]} 47... f5 {[%clk 0:00:16.9]} 48. Rd5 {[%clk 0:00:01.2]}
48... Kf6 {[%clk 0:00:16.7]} 49. b5 {[%clk 0:00:01.8]} 49... f4 {[%clk 0:00:16]}
50. Rdd2 {[%clk 0:00:01.6]} 50... Kf5 {[%clk 0:00:16.3]} 51. Ra2 {[%clk
0:00:02.3]} 51... g4 {[%clk 0:00:16.2]} 52. Ra7 {[%clk 0:00:02.9]} 52... Re7
{[%clk 0:00:16.4]} 53. Rea2 {[%clk 0:00:02.8]} 53... f3 {[%clk 0:00:16.2]} 54.
gxf3 {[%clk 0:00:03.7]} 54... gxf3 {[%clk 0:00:16.6]} 55. Kd4 {[%clk 0:00:04.3]}
55... Kf4 {[%clk 0:00:16.8]} 56. Ra8 {[%clk 0:00:05.2]} 56... Rf7 {[%clk
0:00:16.7]} 57. Rh8 {[%clk 0:00:05.4]} 57... Ng4 {[%clk 0:00:16.8]} 58. Rh4
{[%clk 0:00:05.2]} 58... Kg3 {[%clk 0:00:17.2]} 59. Rh8 {[%clk 0:00:05.1]} 59...
f2 {[%clk 0:00:17.5]} 60. Ra1 {[%clk 0:00:05.4]} 60... f1=Q {[%clk 0:00:17.7]}
61. Rxf1 {[%clk 0:00:04.9]} 61... Rxf1 {[%clk 0:00:18.4]} 62. Rh7 {[%clk
0:00:05.8]} 62... Rb1 {[%clk 0:00:17.6]} 63. Rxc7 {[%clk 0:00:05.4]} 63... Rxb5
{[%clk 0:00:18.1]} 64. Rb7 {[%clk 0:00:05.7]} 64... Rc5 {[%clk 0:00:18.2]} 65.
Rxb6 {[%clk 0:00:06.3]} 65... Nf6 {[%clk 0:00:17.9]} 66. c7 {[%clk 0:00:05.8]}
66... Rxc7 {[%clk 0:00:17.4]} 67. Rxd6 {[%clk 0:00:06.6]} 67... Ng4 {[%clk
0:00:18]} 68. Rg6 {[%clk 0:00:06.6]} 68... Rf7 {[%clk 0:00:18.2]} 69. Kc3 {[%clk
0:00:06.7]} 69... Rf5 {[%clk 0:00:18.4]} 70. Kb2 {[%clk 0:00:06.8]} 70... Kf4
{[%clk 0:00:19.1]} 71. Rg8 {[%clk 0:00:07.3]} 71... Rg5 {[%clk 0:00:19.9]} 72.
Rxg5 {[%clk 0:00:07.3]} 72... Kxg5 {[%clk 0:00:20.1]} 1/2-1/2

[Event "*** Titled Tuesday Blitz"]
[Site "Chess.com"]
[Date "2020.10.27"]
[Round "3"]
[White "albi1999"]
[Black "brunomorado"]
[Result "1-0"]
[WhiteElo "2616"]
[BlackElo "2403"]
[TimeControl "180+1"]
[EndTime "10:29:16 PDT"]
[Termination "albi1999 won by resignation"]

1. d4 {[%clk 0:03:00.9]} 1... d5 {[%clk 0:02:59.6]} 2. c4 {[%clk 0:02:54.2]}
2... c6 {[%clk 0:02:59.1]} 3. cxd5 {[%clk 0:02:53.1]} 3... cxd5 {[%clk 0:03:00]}
4. Bf4 {[%clk 0:02:54]} 4... Nc6 {[%clk 0:02:58.6]} 5. e3 {[%clk 0:02:54.5]}
5... Nf6 {[%clk 0:02:59]} 6. Nc3 {[%clk 0:02:54.2]} 6... a6 {[%clk 0:02:59.2]}
7. Be2 {[%clk 0:02:52.6]} 7... Bf5 {[%clk 0:02:57]} 8. Nf3 {[%clk 0:02:52.6]}
8... e6 {[%clk 0:02:57.1]} 9. Qb3 {[%clk 0:02:52.4]} 9... Na5 {[%clk 0:02:25.8]}
10. Qa4+ {[%clk 0:02:48.4]} 10... Nd7 {[%clk 0:02:25.7]} 11. Ne5 {[%clk
0:02:44.3]} 11... Nc4 {[%clk 0:02:14]} 12. Bxc4 {[%clk 0:02:18.5]} 12... dxc4
{[%clk 0:02:11.9]} 13. Qxc4 {[%clk 0:02:07.4]} 13... Be7 {[%clk 0:02:00.2]} 14.
O-O {[%clk 0:02:05.8]} 14... O-O {[%clk 0:01:58.8]} 15. e4 {[%clk 0:01:55.9]}
15... Bg6 {[%clk 0:01:56]} 16. Nxg6 {[%clk 0:01:54.3]} 16... hxg6 {[%clk
0:01:56.9]} 17. Rfd1 {[%clk 0:01:53.9]} 17... Rc8 {[%clk 0:01:54.3]} 18. Qb3
{[%clk 0:01:50.6]} 18... b5 {[%clk 0:01:48.5]} 19. Rac1 {[%clk 0:01:46.4]} 19...
Nb6 {[%clk 0:01:47.4]} 20. d5 {[%clk 0:01:45]} 20... exd5 {[%clk 0:01:38.3]} 21.
Nxd5 {[%clk 0:01:39.1]} 21... Nxd5 {[%clk 0:01:38.2]} 22. Rxc8 {[%clk
0:01:15.2]} 22... Qxc8 {[%clk 0:01:35.1]} 23. exd5 {[%clk 0:01:15.7]} 23... Rd8
{[%clk 0:01:30.8]} 24. d6 {[%clk 0:01:16]} 24... Bf6 {[%clk 0:01:30.7]} 25. h3
{[%clk 0:01:14.4]} 25... g5 {[%clk 0:01:27.3]} 26. Bg3 {[%clk 0:01:13.6]} 26...
Qc5 {[%clk 0:01:24.1]} 27. a4 {[%clk 0:00:59.4]} 27... Be5 {[%clk 0:01:06]} 28.
Bxe5 {[%clk 0:00:47.1]} 28... Qxe5 {[%clk 0:01:06.9]} 29. axb5 {[%clk
0:00:47.1]} 29... axb5 {[%clk 0:01:03]} 30. Qb4 {[%clk 0:00:45.7]} 30... Rd7
{[%clk 0:00:56.5]} 31. b3 {[%clk 0:00:40.4]} 31... f6 {[%clk 0:00:41.7]} 32. Qd2
{[%clk 0:00:39.1]} 32... Kf7 {[%clk 0:00:41.3]} 33. Qd3 {[%clk 0:00:39.4]} 33...
Ke6 {[%clk 0:00:39.6]} 34. Qb1 {[%clk 0:00:28.4]} 34... Kf7 {[%clk 0:00:32.5]}
35. Qc1 {[%clk 0:00:20.5]} 35... b4 {[%clk 0:00:17.9]} 36. Qc4+ {[%clk
0:00:17.8]} 36... Kg6 {[%clk 0:00:15.6]} 37. Qxb4 {[%clk 0:00:18.1]} 37... Qe2
{[%clk 0:00:16.3]} 38. Qd2 {[%clk 0:00:17]} 38... Qxd2 {[%clk 0:00:16]} 39. Rxd2
{[%clk 0:00:17.9]} 39... Kf7 {[%clk 0:00:16.9]} 40. Kf1 {[%clk 0:00:17.7]} 40...
Ke8 {[%clk 0:00:17.8]} 41. Ke2 {[%clk 0:00:18.3]} 41... Rb7 {[%clk 0:00:18.7]}
42. Rd3 {[%clk 0:00:18.5]} 42... Kd7 {[%clk 0:00:19.6]} 43. Kf3 {[%clk 0:00:19]}
43... Rb4 {[%clk 0:00:19.9]} 44. Ke3 {[%clk 0:00:19.4]} 44... f5 {[%clk
0:00:19.7]} 45. Kd2 {[%clk 0:00:19.8]} 45... f4 {[%clk 0:00:19.2]} 46. Kc3
{[%clk 0:00:20.2]} 46... Rb6 {[%clk 0:00:20]} 47. f3 {[%clk 0:00:20.5]} 47... g6
{[%clk 0:00:20.2]} 48. b4 {[%clk 0:00:20.8]} 48... Rc6+ {[%clk 0:00:20.6]} 49.
Kb3 {[%clk 0:00:21.3]} 49... Rc1 {[%clk 0:00:19.2]} 50. b5 {[%clk 0:00:21.4]}
50... Rb1+ {[%clk 0:00:19.4]} 51. Kc4 {[%clk 0:00:21.8]} 51... Rb2 {[%clk
0:00:19.7]} 52. Kc5 {[%clk 0:00:21.9]} 52... Rxg2 {[%clk 0:00:20]} 53. Rb3
{[%clk 0:00:22.1]} 53... Rc2+ {[%clk 0:00:19.7]} 54. Kd5 {[%clk 0:00:22.6]}
54... Rd2+ {[%clk 0:00:19.9]} 55. Ke5 {[%clk 0:00:23.1]} 55... Rxd6 {[%clk
0:00:20.8]} 56. b6 {[%clk 0:00:22.7]} 56... Re6+ {[%clk 0:00:21]} 57. Kd5 {[%clk
0:00:23]} 57... Rd6+ {[%clk 0:00:21.6]} 58. Kc5 {[%clk 0:00:23.4]} 58... Rc6+
{[%clk 0:00:22.2]} 59. Kb5 {[%clk 0:00:23.9]} 59... Re6 {[%clk 0:00:21.1]} 60.
Ka6 {[%clk 0:00:20.8]} 60... Kc8 {[%clk 0:00:20.6]} 61. Ka7 {[%clk 0:00:20.4]}
61... Re1 {[%clk 0:00:12.1]} 62. b7+ {[%clk 0:00:20.6]} 62... Kd7 {[%clk
0:00:12.3]} 63. b8=Q {[%clk 0:00:21.1]} 63... Ra1+ {[%clk 0:00:13]} 64. Kb7
{[%clk 0:00:21.2]} 1-0

[Event "*** Titled Tuesday Blitz"]
[Site "Chess.com"]
[Date "2020.10.27"]
[Round "3"]
[White "nubair1198"]
[Black "MattyDPerrine"]
[Result "0-1"]
[WhiteElo "2824"]
[BlackElo "2473"]
[TimeControl "180+1"]
[EndTime "10:29:20 PDT"]
[Termination "MattyDPerrine won by resignation"]

1. Nf3 {[%clk 0:03:00.9]} 1... c5 {[%clk 0:02:59.2]} 2. c4 {[%clk 0:02:59.3]}
2... Nf6 {[%clk 0:02:58.8]} 3. b3 {[%clk 0:02:56.8]} 3... d5 {[%clk 0:02:55.7]}
4. cxd5 {[%clk 0:02:56.3]} 4... Nxd5 {[%clk 0:02:56.6]} 5. Bb2 {[%clk
0:02:56.7]} 5... Nc6 {[%clk 0:02:56.7]} 6. Nc3 {[%clk 0:02:56.6]} 6... Nc7
{[%clk 0:02:55]} 7. Rc1 {[%clk 0:02:53.5]} 7... b6 {[%clk 0:02:48.8]} 8. g3
{[%clk 0:02:53.2]} 8... e5 {[%clk 0:02:40.3]} 9. Bg2 {[%clk 0:02:52.8]} 9... Be7
{[%clk 0:02:36.3]} 10. O-O {[%clk 0:02:43]} 10... O-O {[%clk 0:02:35.9]} 11. d3
{[%clk 0:02:11.1]} 11... Be6 {[%clk 0:02:16.1]} 12. Qd2 {[%clk 0:02:00.6]} 12...
f6 {[%clk 0:01:57.6]} 13. Rfd1 {[%clk 0:02:00.2]} 13... Qd7 {[%clk 0:01:52.2]}
14. Ne4 {[%clk 0:01:42]} 14... Rad8 {[%clk 0:01:40.7]} 15. Qc2 {[%clk
0:01:39.4]} 15... Nd5 {[%clk 0:01:11.4]} 16. a3 {[%clk 0:01:38.3]} 16... Nd4
{[%clk 0:00:54]} 17. Nxd4 {[%clk 0:01:34.5]} 17... exd4 {[%clk 0:00:52]} 18. Nd2
{[%clk 0:01:29]} 18... f5 {[%clk 0:00:46]} 19. Ba1 {[%clk 0:00:50.9]} 19... Bg5
{[%clk 0:00:41.1]} 20. Rb1 {[%clk 0:00:49.1]} 20... Rc8 {[%clk 0:00:38]} 21. Nc4
{[%clk 0:00:48.9]} 21... b5 {[%clk 0:00:26]} 22. Ne5 {[%clk 0:00:49.1]} 22...
Qd6 {[%clk 0:00:26]} 23. Nf3 {[%clk 0:00:50]} 23... Bf6 {[%clk 0:00:26.1]} 24.
Qd2 {[%clk 0:00:48]} 24... f4 {[%clk 0:00:23.7]} 25. Qa5 {[%clk 0:00:47.1]}
25... a6 {[%clk 0:00:18.2]} 26. Nd2 {[%clk 0:00:46.7]} 26... fxg3 {[%clk
0:00:14.7]} 27. hxg3 {[%clk 0:00:46.5]} 27... Bd8 {[%clk 0:00:13.4]} 28. Ne4
{[%clk 0:00:46.5]} 28... Qc6 {[%clk 0:00:09.3]} 29. Qe1 {[%clk 0:00:46.8]} 29...
Qd7 {[%clk 0:00:09.4]} 30. b4 {[%clk 0:00:43.8]} 30... cxb4 {[%clk 0:00:09.5]}
31. axb4 {[%clk 0:00:43.8]} 31... Bb6 {[%clk 0:00:10.1]} 32. Rdc1 {[%clk
0:00:42.7]} 32... Qe7 {[%clk 0:00:09.7]} 33. Nc5 {[%clk 0:00:41]} 33... Bxc5
{[%clk 0:00:09.8]} 34. bxc5 {[%clk 0:00:41.9]} 34... Rxc5 {[%clk 0:00:10.6]} 35.
Bxd4 {[%clk 0:00:42.1]} 35... Rxc1 {[%clk 0:00:10.9]} 36. Rxc1 {[%clk 0:00:43]}
36... Qd7 {[%clk 0:00:09.2]} 37. Qa5 {[%clk 0:00:40.8]} 37... Rc8 {[%clk
0:00:08.7]} 38. Bb2 {[%clk 0:00:38.5]} 38... Rxc1+ {[%clk 0:00:07.3]} 39. Bxc1
{[%clk 0:00:39.4]} 39... Qc6 {[%clk 0:00:08]} 40. Qd8+ {[%clk 0:00:38.2]} 40...
Kf7 {[%clk 0:00:07.1]} 41. Bb2 {[%clk 0:00:37.5]} 41... Qe8 {[%clk 0:00:04.5]}
42. Qg5 {[%clk 0:00:30.6]} 42... Nf6 {[%clk 0:00:04.1]} 43. Bf3 {[%clk
0:00:26.7]} 43... Qe7 {[%clk 0:00:02.4]} 44. Kg2 {[%clk 0:00:23.5]} 44... h6
{[%clk 0:00:02.2]} 45. Qe5 {[%clk 0:00:21.9]} 45... Qd7 {[%clk 0:00:02.4]} 46.
Qb8 {[%clk 0:00:17.5]} 46... Bh3+ {[%clk 0:00:02.9]} 47. Kg1 {[%clk 0:00:17.6]}
47... Be6 {[%clk 0:00:03.8]} 48. Qa8 {[%clk 0:00:16.6]} 48... Bd5 {[%clk
0:00:03.9]} 49. Bxd5+ {[%clk 0:00:15.5]} 49... Nxd5 {[%clk 0:00:04.1]} 50. e4
{[%clk 0:00:14.8]} 50... Nc7 {[%clk 0:00:03.8]} 51. Qb7 {[%clk 0:00:14.2]} 51...
Qe7 {[%clk 0:00:04.3]} 52. d4 {[%clk 0:00:13.3]} 52... Ne6 {[%clk 0:00:03.8]}
53. Qxa6 {[%clk 0:00:12.5]} 53... Ng5 {[%clk 0:00:04.1]} 54. e5 {[%clk
0:00:09.4]} 54... Qd7 {[%clk 0:00:03.6]} 55. Qb6 {[%clk 0:00:07.4]} 55... Qd5
{[%clk 0:00:03]} 56. Qc7+ {[%clk 0:00:07.3]} 56... Kg8 {[%clk 0:00:02.4]} 57.
Qc8+ {[%clk 0:00:06.8]} 57... Kh7 {[%clk 0:00:02.3]} 58. Qf5+ {[%clk 0:00:07]}
58... g6 {[%clk 0:00:02.8]} 59. Qd3 {[%clk 0:00:06.4]} 59... Nf3+ {[%clk
0:00:03]} 60. Kf1 {[%clk 0:00:06.8]} 60... Nxe5 {[%clk 0:00:03.6]} 61. Qe3
{[%clk 0:00:06.2]} 61... Nc6 {[%clk 0:00:03]} 62. Qe7+ {[%clk 0:00:06.6]} 62...
Nxe7 {[%clk 0:00:03]} 63. Ke2 {[%clk 0:00:06.8]} 63... Qc4+ {[%clk 0:00:03.9]}
64. Kd2 {[%clk 0:00:06.8]} 64... Nd5 {[%clk 0:00:04.8]} 0-1

[Event "*** Titled Tuesday Blitz"]
[Site "Chess.com"]
[Date "2020.10.27"]
[Round "3"]
[White "fireheart92"]
[Black "gilbert_gm"]
[Result "1/2-1/2"]
[WhiteElo "2870"]
[BlackElo "2588"]
[TimeControl "180+1"]
[EndTime "10:29:24 PDT"]
[Termination "Game drawn by repetition"]

1. d4 {[%clk 0:03:00.9]} 1... d5 {[%clk 0:02:57.8]} 2. c4 {[%clk 0:03:01]} 2...
c6 {[%clk 0:02:58]} 3. cxd5 {[%clk 0:02:57.4]} 3... cxd5 {[%clk 0:02:58.9]} 4.
Bf4 {[%clk 0:02:56.5]} 4... Nc6 {[%clk 0:02:58.4]} 5. e3 {[%clk 0:02:56.4]} 5...
Nf6 {[%clk 0:02:56.8]} 6. Nc3 {[%clk 0:02:56.3]} 6... a6 {[%clk 0:02:57.1]} 7.
Be2 {[%clk 0:02:55.7]} 7... h6 {[%clk 0:02:50.4]} 8. Nf3 {[%clk 0:02:52.4]} 8...
Bg4 {[%clk 0:02:49.9]} 9. Qb3 {[%clk 0:02:50.1]} 9... Na5 {[%clk 0:02:49.5]} 10.
Qa4+ {[%clk 0:02:49.8]} 10... Bd7 {[%clk 0:02:49.1]} 11. Qc2 {[%clk 0:02:48.5]}
11... e6 {[%clk 0:02:39.1]} 12. h3 {[%clk 0:02:42.8]} 12... Rc8 {[%clk
0:02:35.5]} 13. O-O {[%clk 0:02:42.7]} 13... Bb4 {[%clk 0:02:32]} 14. Rfc1
{[%clk 0:02:39.2]} 14... O-O {[%clk 0:02:26.3]} 15. Bd3 {[%clk 0:02:37.8]} 15...
Bb5 {[%clk 0:02:08.7]} 16. Bxb5 {[%clk 0:02:14.3]} 16... axb5 {[%clk 0:02:08.7]}
17. Qd3 {[%clk 0:02:10.8]} 17... Bxc3 {[%clk 0:01:54.8]} 18. Rxc3 {[%clk
0:02:10.1]} 18... Rxc3 {[%clk 0:01:54.1]} 19. Qxc3 {[%clk 0:02:11]} 19... Nc6
{[%clk 0:01:53.7]} 20. Rc1 {[%clk 0:02:03.7]} 20... Qb6 {[%clk 0:01:47.4]} 21.
Nd2 {[%clk 0:01:25.5]} 21... Ra8 {[%clk 0:01:35.3]} 22. a3 {[%clk 0:01:17.6]}
22... b4 {[%clk 0:01:28.3]} 23. axb4 {[%clk 0:01:16.8]} 23... Qxb4 {[%clk
0:01:27.2]} 24. f3 {[%clk 0:01:05.2]} 24... Ra2 {[%clk 0:01:17.7]} 25. Qxb4
{[%clk 0:00:37.8]} 25... Nxb4 {[%clk 0:01:18.6]} 26. Rc8+ {[%clk 0:00:37.8]}
26... Kh7 {[%clk 0:01:18.4]} 27. Rc7 {[%clk 0:00:38.2]} 27... Rxb2 {[%clk
0:01:13.2]} 28. Rxb7 {[%clk 0:00:38.4]} 28... Rxd2 {[%clk 0:00:33.8]} 29. Rxb4
{[%clk 0:00:38]} 29... Nh5 {[%clk 0:00:34.7]} 30. Bd6 {[%clk 0:00:31.5]} 30...
Re2 {[%clk 0:00:13.4]} 31. Rb3 {[%clk 0:00:30.9]} 31... Nf6 {[%clk 0:00:08.1]}
32. Kf1 {[%clk 0:00:28.9]} 32... Ra2 {[%clk 0:00:08.1]} 33. Rb7 {[%clk
0:00:25.4]} 33... Kg6 {[%clk 0:00:07.5]} 34. Be5 {[%clk 0:00:25.6]} 34... Nh5
{[%clk 0:00:07.2]} 35. g4 {[%clk 0:00:24]} 35... Ra1+ {[%clk 0:00:07.7]} 36. Kf2
{[%clk 0:00:22.8]} 36... Ra2+ {[%clk 0:00:08.6]} 37. Kf1 {[%clk 0:00:23]} 37...
Ra1+ {[%clk 0:00:09]} 38. Ke2 {[%clk 0:00:23.5]} 38... Ra2+ {[%clk 0:00:09.4]}
39. Kd3 {[%clk 0:00:21.7]} 39... Ra3+ {[%clk 0:00:09.8]} 40. Kd2 {[%clk
0:00:21.5]} 40... Ra2+ {[%clk 0:00:10]} 41. Kc3 {[%clk 0:00:20.1]} 41... Nf6
{[%clk 0:00:09.5]} 42. h4 {[%clk 0:00:19.2]} 42... h5 {[%clk 0:00:08.6]} 43. g5
{[%clk 0:00:19.5]} 43... Nh7 {[%clk 0:00:05]} 44. e4 {[%clk 0:00:16.8]} 44...
Ra3+ {[%clk 0:00:04.4]} 45. Kb4 {[%clk 0:00:16.1]} 45... Rxf3 {[%clk 0:00:04.5]}
46. exd5 {[%clk 0:00:16.5]} 46... exd5 {[%clk 0:00:05.4]} 47. Kc5 {[%clk
0:00:16.3]} 47... f6 {[%clk 0:00:04.9]} 48. gxf6 {[%clk 0:00:15.9]} 48... Nxf6
{[%clk 0:00:05.6]} 49. Bxf6 {[%clk 0:00:15.3]} 49... gxf6 {[%clk 0:00:06.2]} 50.
Kxd5 {[%clk 0:00:15.4]} 50... Rf4 {[%clk 0:00:06.6]} 51. Kc5 {[%clk 0:00:13.5]}
51... Rxh4 {[%clk 0:00:06.8]} 52. d5 {[%clk 0:00:14]} 52... Rh1 {[%clk
0:00:06.9]} 53. d6 {[%clk 0:00:12.5]} 53... Rd1 {[%clk 0:00:06.7]} 54. Rb4
{[%clk 0:00:10.7]} 54... Kf7 {[%clk 0:00:05.3]} 55. Kc6 {[%clk 0:00:08.8]} 55...
f5 {[%clk 0:00:04.2]} 56. Kc7 {[%clk 0:00:02.4]} 56... Ke6 {[%clk 0:00:04]} 57.
Rb6 {[%clk 0:00:02.4]} 57... Rc1+ {[%clk 0:00:04]} 58. Rc6 {[%clk 0:00:01.7]}
58... Rd1 {[%clk 0:00:03.4]} 59. Ra6 {[%clk 0:00:01.3]} 59... Rc1+ {[%clk
0:00:03.3]} 60. Rc6 {[%clk 0:00:01.7]} 60... Rd1 {[%clk 0:00:04.2]} 61. Rb6
{[%clk 0:00:02.1]} 61... Rc1+ {[%clk 0:00:04.6]} 62. Rc6 {[%clk 0:00:02.7]}
1/2-1/2

[Event "*** Titled Tuesday Blitz"]
[Site "Chess.com"]
[Date "2020.10.27"]
[Round "3"]
[White "nrvisakh"]
[Black "Infernal_XaM"]
[Result "1-0"]
[WhiteElo "2679"]
[BlackElo "2849"]
[TimeControl "180+1"]
[EndTime "10:29:32 PDT"]
[Termination "nrvisakh won by resignation"]

1. e4 {[%clk 0:03:00.9]} 1... e5 {[%clk 0:02:59.3]} 2. Nf3 {[%clk 0:02:59.7]}
2... Nc6 {[%clk 0:02:59.8]} 3. Bb5 {[%clk 0:02:59.3]} 3... Nge7 {[%clk
0:02:56.6]} 4. O-O {[%clk 0:02:58.4]} 4... g6 {[%clk 0:02:54.6]} 5. c3 {[%clk
0:02:54.8]} 5... Bg7 {[%clk 0:02:54.2]} 6. d4 {[%clk 0:02:54.9]} 6... exd4
{[%clk 0:02:54]} 7. cxd4 {[%clk 0:02:54.4]} 7... a6 {[%clk 0:02:54.5]} 8. Bc4
{[%clk 0:02:38.2]} 8... b5 {[%clk 0:02:53.2]} 9. Bb3 {[%clk 0:02:32]} 9... d6
{[%clk 0:02:48.5]} 10. a4 {[%clk 0:02:19.4]} 10... b4 {[%clk 0:02:48]} 11. h3
{[%clk 0:02:12.7]} 11... O-O {[%clk 0:02:47.4]} 12. Bg5 {[%clk 0:02:12.6]} 12...
h6 {[%clk 0:02:47]} 13. Bxe7 {[%clk 0:02:09.8]} 13... Nxe7 {[%clk 0:02:45.4]}
14. Nbd2 {[%clk 0:02:09.5]} 14... c6 {[%clk 0:02:36.5]} 15. Rc1 {[%clk
0:02:07.1]} 15... a5 {[%clk 0:02:36.2]} 16. Re1 {[%clk 0:02:06.9]} 16... Kh7
{[%clk 0:02:30.1]} 17. Nc4 {[%clk 0:02:03.3]} 17... Ba6 {[%clk 0:02:17.5]} 18.
e5 {[%clk 0:01:51]} 18... d5 {[%clk 0:02:09.7]} 19. Nd6 {[%clk 0:01:50.8]} 19...
f6 {[%clk 0:02:06.6]} 20. Bc2 {[%clk 0:01:11.4]} 20... fxe5 {[%clk 0:02:03.5]}
21. dxe5 {[%clk 0:01:11.2]} 21... Rf4 {[%clk 0:01:53.9]} 22. Nd4 {[%clk
0:00:55.1]} 22... Qd7 {[%clk 0:01:45.5]} 23. g3 {[%clk 0:00:38.1]} 23... Rxd4
{[%clk 0:01:15.9]} 24. Qxd4 {[%clk 0:00:37.6]} 24... Qxh3 {[%clk 0:01:16.5]} 25.
Bd3 {[%clk 0:00:34.3]} 25... Bxd3 {[%clk 0:01:09.9]} 26. Qxd3 {[%clk 0:00:34.3]}
26... Rf8 {[%clk 0:01:10.5]} 27. Re2 {[%clk 0:00:28.4]} 27... h5 {[%clk
0:01:07.8]} 28. e6 {[%clk 0:00:25.7]} 28... Qg4 {[%clk 0:00:58.1]} 29. Nf7
{[%clk 0:00:24.2]} 29... h4 {[%clk 0:00:56.5]} 30. Rce1 {[%clk 0:00:23.5]} 30...
c5 {[%clk 0:00:48.5]} 31. Qe3 {[%clk 0:00:20.4]} 31... c4 {[%clk 0:00:38.5]} 32.
Qg5 {[%clk 0:00:18.6]} 32... Qxg5 {[%clk 0:00:29.9]} 33. Nxg5+ {[%clk
0:00:19.5]} 33... Kh6 {[%clk 0:00:28.1]} 34. Nf7+ {[%clk 0:00:19.4]} 34... Kh5
{[%clk 0:00:26]} 35. Kg2 {[%clk 0:00:15.5]} 35... g5 {[%clk 0:00:17.6]} 36. Rd1
{[%clk 0:00:07.5]} 36... d4 {[%clk 0:00:16.8]} 37. g4+ {[%clk 0:00:05.1]} 37...
Kg6 {[%clk 0:00:15.1]} 38. Re4 {[%clk 0:00:04.2]} 38... Rc8 {[%clk 0:00:13.5]}
39. Nd6 {[%clk 0:00:02.6]} 39... Rc6 {[%clk 0:00:13.2]} 40. Nb5 {[%clk
0:00:02.7]} 40... c3 {[%clk 0:00:13.1]} 41. Nxd4 {[%clk 0:00:02.9]} 41... Bxd4
{[%clk 0:00:12.8]} 42. Rexd4 {[%clk 0:00:03.8]} 42... cxb2 {[%clk 0:00:12.7]}
43. Rb1 {[%clk 0:00:03.8]} 43... Rxe6 {[%clk 0:00:12.9]} 44. Rxb2 {[%clk
0:00:03.4]} 44... Nc6 {[%clk 0:00:13.2]} 45. Rd5 {[%clk 0:00:03.6]} 45... Kf6
{[%clk 0:00:12.4]} 46. Rb5 {[%clk 0:00:03.4]} 46... Re4 {[%clk 0:00:11.5]} 47.
Rb6 {[%clk 0:00:03.4]} 47... Rc4 {[%clk 0:00:11.3]} 48. Re2 {[%clk 0:00:03.7]}
48... Kf7 {[%clk 0:00:11.4]} 49. Rb7+ {[%clk 0:00:03.7]} 49... Kf6 {[%clk
0:00:11.7]} 50. Rb6 {[%clk 0:00:04.6]} 50... Kf7 {[%clk 0:00:11.9]} 51. Re3
{[%clk 0:00:05]} 51... Nd4 {[%clk 0:00:11.1]} 52. Re4 {[%clk 0:00:04.9]} 52...
Kf8 {[%clk 0:00:06.7]} 53. Rd6 {[%clk 0:00:04.7]} 53... Nf5 {[%clk 0:00:05.1]}
54. Rf6+ {[%clk 0:00:03.1]} 54... Kg7 {[%clk 0:00:05.4]} 55. Rxc4 {[%clk
0:00:03.3]} 55... Kxf6 {[%clk 0:00:05.6]} 56. gxf5 {[%clk 0:00:03.6]} 56... Kxf5
{[%clk 0:00:06.1]} 57. Rc5+ {[%clk 0:00:03.8]} 57... Ke4 {[%clk 0:00:06.4]} 58.
Rxa5 {[%clk 0:00:04.7]} 58... Kd3 {[%clk 0:00:06.8]} 59. Rb5 {[%clk 0:00:05.2]}
59... Kc4 {[%clk 0:00:06.9]} 60. Rb8 {[%clk 0:00:05.3]} 60... b3 {[%clk
0:00:07.5]} 61. a5 {[%clk 0:00:05.7]} 61... Kc3 {[%clk 0:00:08.4]} 62. a6 {[%clk
0:00:06]} 1-0